Cogmind - Beta 9.6 @@@ ROGUE MODE // 2020.04.24 @ 00:46:23 Player: Omewes Result: Self-destructed Performance ------------- Evolutions (2) 1000 Regions Visited (5) 1000 Robots Destroyed (20) 100 Value Destroyed (419) 419 Prototype IDs (0) 0 Alien Tech Used (0) 0 Bonus (0) 0 TOTAL SCORE: 2519 Bonus ------- None Cogmind --------- Core Integrity 81/550 Matter 300/300 Energy 100/100 System Corruption 0% Temperature Cool (0) Movement Core (1100) Ox21 Location -8/Materials Parts ------- > --- POWER (1) -------- (None) > --- PROPULSION (2) --- (None) > --- UTILITY (4) ------ High-capacity Storage Unit High-capacity Storage Unit Targeting Computer Target Analyzer > --- WEAPON (4) ------- (None) > --- INVENTORY (20) --- Light Nuclear Core Advanced Heat Sink High-capacity Storage Unit High-capacity Matter Pod (200) Compact Matter Pod (150) Terrain Scanner Advanced Terrain Scanner Terrain Scan Processor Targeting Computer Utility Shielding Peak State ------------ > --- POWER ------------ Ion Engine > --- PROPULSION ------- Light Treads Light Treads > --- UTILITY ---------- High-capacity Storage Unit High-capacity Storage Unit Targeting Computer Target Analyzer > --- WEAPON ----------- Assault Rifle Light Assault Rifle Light Assault Rifle > --- INVENTORY -------- Light Nuclear Core Advanced Heat Sink High-capacity Storage Unit High-capacity Matter Pod Compact Matter Pod Terrain Scanner Advanced Terrain Scanner Terrain Scan Processor Utility Shielding [Rating: 14] Favorites ----------- Power Ion Engine Engine Ion Engine Propulsion Light Treads Treads Light Treads Leg Carbon-fiber Leg Utility High-capacity Storage Unit Storage High-capacity Storage Unit Processor Target Analyzer Weapon Assault Rifle Ballistic Gun Assault Rifle Launcher Grenade Launcher Build | -11 -10 -10 -10 -9 -8 ------- Run | Scr Mat Min Exi Min Mat Slots Evolved 4 | . . . . . 4 Power . | . . . . . . Propulsion . | . . . . . . Utility 2 | . . . . . 2 Weapon 2 | . . . . . 2 Parts Attached 25 | 5 3 6 2 5 4 Power 3 | 1 1 . . 1 . Engine 3 | 1 1 . . 1 . Core . | . . . . . . Reactor . | . . . . . . Propulsion 7 | 2 1 1 . 2 1 Treads 6 | 2 1 1 . 2 . Leg 1 | . . . . . 1 Wheel . | . . . . . . Hover . | . . . . . . Flight . | . . . . . . Utility 8 | 1 1 2 2 . 2 Device . | . . . . . . Storage 6 | 1 1 2 2 . . Processor 2 | . . . . . 2 Hackware . | . . . . . . Protection . | . . . . . . Artifact . | . . . . . . Weapon 7 | 1 . 3 . 2 1 Energy Gun . | . . . . . . Energy Cannon . | . . . . . . Ballistic Gun 6 | 1 . 3 . 1 1 Ballistic Cannon . | . . . . . . Launcher 1 | . . . . 1 . Special Weapon . | . . . . . . Impact Weapon . | . . . . . . Slashing Weapon . | . . . . . . Piercing Weapon . | . . . . . . Special Melee Weapon . | . . . . . . Unidentified Prototypes . | . . . . . . Parts Lost 12 | . . 1 . 4 7 Power 2 | . . . . 1 1 Propulsion 5 | . . . . 2 3 Utility . | . . . . . . Weapon 5 | . . 1 . 1 3 Highest Loss Streak 5 | . . 1 . 4 5 Average Slot Usage (%) 91 | . 76 99 100 97 69 Engine 13 | . 14 14 14 14 6 Treads 26 | . 28 28 28 27 13 Storage 25 | . 19 28 28 28 18 Processor 1 | . . . . . 18 Ballistic Gun 23 | . 14 27 28 26 12 Naked Turns . | . . . . . . Heaviest Build 74 | 9 19 57 72 74 73 Greatest Support 40 | 40 40 40 40 40 40 Greatest Overweight (x) 3 | . . 1 1 3 3 Average Overweight (x) . | . . . 1 1 1 Largest Inventory Capacity 20 | 6 10 18 20 20 20 Average Capacity 14 | 5 7 15 18 20 20 Most Carried 17 | . 4 15 17 15 10 Average Carried 8 | . 1 9 15 14 9 Final Capacity 20 | 6 10 18 20 20 20 Final Carried 15 | . 4 15 15 11 10 Class Distribution -------------------- 82% | Mutant 13% | Hauler-Mutant 3% | Hauler-Gunner Dominant Class ---------------- Mutant | -10/Materials Mutant | -10/Mines Mutant | -10/Exiles Hauler-Mutant | -9/Mines Hauler-Mutant | -8/Materials Resources | -11 -10 -10 -10 -9 -8 ----------- Run | Scr Mat Min Exi Min Mat Matter Collected 910 | 250 55 423 . 64 118 Remotely . | . . . . . . Salvage Created 619 | . 137 213 . 122 147 Parts 45 | . 8 20 . 10 7 Haulers Intercepted 1 | . 1 . . . . Recyclers Shooed . | . . . . . . Parts Field Recycled . | . . . . . . Retrieved Matter . | . . . . . . Parts Self-Destructed . | . . . . . . Prevented . | . . . . . . Kills | -11 -10 -10 -10 -9 -8 ------- Run | Scr Mat Min Exi Min Mat Combat Hostiles Destroyed 16 | . 2 5 . 6 3 Melee 1 | . . . . . 1 Guns 11 | . 2 5 . 2 2 AOE 4 | . . . . 4 . Classes Destroyed 7 | . 2 3 . 1 1 Builder 2 | . . 2 . . . Tunneler 1 | . . 1 . . . Hauler 1 | . 1 . . . . Swarmer 8 | . . 4 . 4 . Grunt 4 | . 2 . . 1 1 Duelist 1 | . . . . 1 . Hunter 2 | . . . . . 2 Best Kill Streak 4 | . 2 3 . 4 1 Combat Bots Only 4 | . 2 3 . 4 1 Max Kills in Single Turn 2 | . 1 1 . 2 1 Gunslinging . | . . . . . . Exploded 2 | . . . . 2 . Melee 1 | . . . . . 1 Uniques/NPCs Destroyed 1 | . . 1 . . . YI-UF0 (-10/Mines) Combat | -11 -10 -10 -10 -9 -8 -------- Run | Scr Mat Min Exi Min Mat Damage Taken 2134 | . 113 488 . 352 1181 Core 655 | . 18 142 . 26 469 Absorbed by Shields . | . . . . . . Core Remaining (%) 62 | 100 . . . 25 . Volleys Fired 72 | . 15 24 . 16 17 Largest 3 | . 1 2 . 2 3 Hottest 60 | . 20 40 . 40 60 Shots Fired 114 | . 15 38 . 30 31 Gun 112 | . 15 38 . 28 31 Cannon . | . . . . . . Launcher 2 | . . . . 2 . Special . | . . . . . . Kinetic 112 | . 15 38 . 28 31 Thermal . | . . . . . . Explosive 2 | . . . . 2 . Electromagnetic . | . . . . . . Robot Hit Streak 6 | . 6 5 . 5 6 Robot Miss Streak 4 | . 1 4 . 2 1 Penetration Max . | . . . . . . Secondary Targets 1 | . . . . 1 . Max Gunslinging Chain 1 | . . . . 1 . Shots Hit Robots 76 | . 13 19 . 19 25 Core Hits 41 | . 7 12 . 9 13 Critical Hits 1 | . . . . . 1 Critical Kills . | . . . . . . Critical Parts Destroyed 1 | . . . . . 1 Melee Attacks . | . . . . . . Impact . | . . . . . . Slashing . | . . . . . . Piercing . | . . . . . . Sneak Attacks . | . . . . . . Combat Hostiles . | . . . . . . Follow-up Attacks . | . . . . . . Damage Inflicted 1025 | . 175 255 . 410 185 Guns 781 | . 175 255 . 192 159 Cannons . | . . . . . . Explosions 218 | . . . . 218 . Melee . | . . . . . . Ramming 26 | . . . . . 26 Kinetic 781 | . 175 255 . 192 159 Thermal . | . . . . . . Explosive 218 | . . . . 218 . Electromagnetic . | . . . . . . Impact . | . . . . . . Slashing . | . . . . . . Piercing . | . . . . . . Highest Corruption 1 | . 1 1 1 1 . Average Corruption 1 | . 1 1 1 1 . Corruption Purged . | . . . . . . Effects 8 | . 2 5 1 . . Message Errors 5 | . 2 3 . . . Data Loss (minor) 2 | . . 1 1 . . Targeting Errors 1 | . . 1 . . . Overload Shots . | . . . . . . Overflow Damage 19 | . . . . 19 . Projectiles . | . . . . . . Explosions 19 | . . . . 19 . Melee . | . . . . . . Knockbacks . | . . . . . . Impact . | . . . . . . Kinetic . | . . . . . . Secondary . | . . . . . . Self-Inflicted Damage 83 | . . . . 80 3 Shots 2 | . . . . 2 . Rammed 8 | . . . . . 8 Targets Rammed 12 | . . . . . 12 Kicked 3 | . . . . . 3 Crushed 1 | . . . . . 1 Highest Temperature 17 | . . . . 12 17 Average Temperature 6 | . . . . 7 6 Received Heat Transfer 510 | . 48 . . 48 414 Siege Activations . | . . . . . . Robots Corrupted . | . . . . . . Combat Hostiles . | . . . . . . Parts Fried . | . . . . . . Impact Corruptions . | . . . . . . Robots Melted . | . . . . . . Combat Hostiles . | . . . . . . Parts Melted . | . . . . . . Heat Transferred . | . . . . . . Parts Sabotaged . | . . . . . . Parts Stolen . | . . . . . . Parts Stripped . | . . . . . . Power Chain Reactions . | . . . . . . Missiles Intercepted . | . . . . . . Alert | -11 -10 -10 -10 -9 -8 ------- Run | Scr Mat Min Exi Min Mat Peak Influence 115 | . 87 96 . 115 104 Average Influence 42 | . 49 32 . 64 77 Maximum Alert Level . | . . . . . . Low Security (%) 100 | 100 100 100 . 100 100 Level 1 . | . . . . . . Level 2 . | . . . . . . Level 3 . | . . . . . . Level 4 . | . . . . . . Level 5 . | . . . . . . High Security . | . . . . . . Max Security . | . . . . . . Squads Dispatched 2 | . . . . . 2 Investigation . | . . . . . . Extermination . | . . . . . . Reinforcement . | . . . . . . Assault . | . . . . . . Garrison 2 | . . . . . 2 Intercept . | . . . . . . Construction Impeded . | . . . . . . Haulers Reinforced . | . . . . . . Stealth | -11 -10 -10 -10 -9 -8 --------- Run | Scr Mat Min Exi Min Mat Distress Signals 3 | . 1 . . . 2 Communications Jammed . | . . . . . . Distress Signals . | . . . . . . Times Spotted 31 | . 9 5 . 6 11 Peak Tracking Total 7 | . 5 3 . 4 7 Tactical Retreats 2 | . 1 . . . 1 Traps | -11 -10 -10 -10 -9 -8 ------- Run | Scr Mat Min Exi Min Mat Traps Triggered 1 | . 1 . . . . Indirectly . | . . . . . . Trap Hack Attempts . | . . . . . . Triggered . | . . . . . . Disarmed . | . . . . . . Reprogrammed . | . . . . . . Reused . | . . . . . . Traps Extracted . | . . . . . . Installed . | . . . . . . Triggered . | . . . . . . Machines | -11 -10 -10 -10 -9 -8 ---------- Run | Scr Mat Min Exi Min Mat Machines Disabled . | . . . . . . Max in Single Turn . | . . . . . . Machines Sabotaged . | . . . . . . Garrisons Compromised . | . . . . . . Overloaded Fab Kills . | . . . . . . Fab Network Shutdowns . | . . . . . . Hacking | -11 -10 -10 -10 -9 -8 --------- Run | Scr Mat Min Exi Min Mat Machines Accessed 5 | . 2 1 2 . . Terminals 2 | . 2 . . . . Fabricators . | . . . . . . Repair Stations . | . . . . . . Recycling Units . | . . . . . . Scanalyzers . | . . . . . . Garrison Access . | . . . . . . Total Hacks 7 | . 4 1 2 . . Successful 4 | . 1 1 2 . . Failed 3 | . 3 . . . . Catastrophic 1 | . 1 . . . . Database Lockouts . | . . . . . . Manual 3 | . 3 . . . . Terminals 4 | . 4 . . . . Fabricators . | . . . . . . Repair Stations . | . . . . . . Recycling Units . | . . . . . . Scanalyzers . | . . . . . . Garrison Access . | . . . . . . Terminal Hacks 4 | . 1 1 2 . . Record 2 | . . . 2 . . Open Door 1 | . . 1 . . . Hauler Manifests 1 | . 1 . . . . Fabricator Hacks . | . . . . . . Repair Station Hacks . | . . . . . . Recycling Unit Hacks . | . . . . . . Scanalyzer . | . . . . . . Garrison Access Hacks . | . . . . . . Unauthorized Hacks . | . . . . . . Terminals . | . . . . . . Fabricators . | . . . . . . Repair Stations . | . . . . . . Recycling Units . | . . . . . . Scanalyzers . | . . . . . . Garrison Access . | . . . . . . Data Cores Recovered . | . . . . . . Used . | . . . . . . Hacking Detections 2 | . 2 . . . . Full Trace Events . | . . . . . . Feedback Events . | . . . . . . Feedback Blocked . | . . . . . . Robot Schematics Acquired . | . . . . . . Robots Built . | . . . . . . Matter . | . . . . . . Time . | . . . . . . Total Robot Build Rating . | . . . . . . Part Schematics Acquired . | . . . . . . Parts Built . | . . . . . . Matter . | . . . . . . Time . | . . . . . . Total Part Build Rating . | . . . . . . Parts Repaired . | . . . . . . Time . | . . . . . . Parts Recycled . | . . . . . . Recycled Matter . | . . . . . . Retrieved Matter . | . . . . . . Retrieved Components . | . . . . . . Parts Scanalyzed . | . . . . . . Part Schematics Acquired . | . . . . . . Parts Damaged . | . . . . . . Bothacking | -11 -10 -10 -10 -9 -8 ------------ Run | Scr Mat Min Exi Min Mat Used RIF Installer . | . . . . . . Robots Hacked . | . . . . . . Non-combat . | . . . . . . Combat . | . . . . . . Robot Hacks Applied . | . . . . . . Relay Couplers Released . | . . . . . . Robots Rewired . | . . . . . . Allies Hacked . | . . . . . . Hacks Repelled . | . . . . . . Allies | -11 -10 -10 -10 -9 -8 -------- Run | Scr Mat Min Exi Min Mat Total Allies 1 | . . 1 . . . Largest Group 1 | . . 1 . . . Highest-Rated Group 31 | . . 31 . . . Highest-Rated Ally 31 | . . 31 . . . Total Orders . | . . . . . . Ally Attacks . | . . . . . . Total Damage . | . . . . . . Kills . | . . . . . . Allies Corrupted . | . . . . . . Allies Melted . | . . . . . . Intel | -11 -10 -10 -10 -9 -8 ------- Run | Scr Mat Min Exi Min Mat Robot Analysis Total . | . . . . . . Derelict Logs Recovered 3 | . . 2 . 1 . Drone Launches . | . . . . . . Drone Recoveries . | . . . . . . Exploration | -11 -10 -10 -10 -9 -8 ------------- Run | Scr Mat Min Exi Min Mat Turns Passed 2298 | 62 482 1089 323 138 204 Spaces Moved 1164 | 46 268 569 178 50 53 Core 16 | 16 . . . . . Treads 1148 | 30 268 569 178 50 53 Legs . | . . . . . . Wheels . | . . . . . . Hover . | . . . . . . Flight . | . . . . . . Fastest Speed 50 | 50 160 160 180 180 180 Average Speed 171 | 121 160 176 180 181 181 Slowest Speed 220 | 160 160 180 180 220 220 Overloaded Moves . | . . . . . . Propulsion Burnouts . | . . . . . . Robots Hopped . | . . . . . . Cave-ins Triggered . | . . . . . . Exploration Rate (%) 34 | 3 42 79 56 20 8 Regions Visited 5 Branch Regions 3 Pre-discovered Areas 2 | . . 1 . 1 . Known Exits Taken 1 | . . . 1 . . Unknown Exits Taken 4 | 1 1 1 . 1 . Scrap Searched 2 | . . 2 . . . Spaces Dug . | . . . . . . Terrain Destroyed 18 | . . . . 18 . Melee . | . . . . . . Projectile . | . . . . . . AOE 18 | . . . . 18 . Actions | -11 -10 -10 -10 -9 -8 --------- Run | Scr Mat Min Exi Min Mat Total 1317 | 50 305 615 181 70 96 Wait 31 | . 16 7 . . 8 Move 1159 | 45 267 568 177 49 53 Hop . | . . . . . . Pick Up 14 | . 3 9 . . 2 Fast Attach 8 | 5 1 1 . . 1 Attach 8 | . . 1 . 4 3 Detach . | . . . . . . Swap 9 | . 2 4 2 1 . Drop 4 | . 1 1 2 . . Fire 72 | . 15 24 . 16 17 Melee . | . . . . . . Ram 3 | . . . . . 3 Kick 6 | . . . . . 6 Crush 3 | . . . . . 3 Escape Stasis . | . . . . . . Rewire . | . . . . . . Trap . | . . . . . . Miscellaneous . | . . . . . . Route ------- -11/Scrapyard -10/Materials (discovered 2 exits: [*Mat] / *Min) -10/Mines (discovered 3 exits: [*Mat x2] / *Exi) -10/Exiles (discovered 2 exits: *Min x2) -9/Mines -8/Materials History --------- Turn | Location | Event 3 | -11/Scrapyard | Discovered new exit (range 16) 63 | -11/Scrapyard | Entered Materials 103 | -10/Materials | Discovered new exit (range 12) 311 | -10/Materials | Build established: Mutant 458 | -10/Materials | Discovered new exit (range 5) 545 | -10/Materials | Entered Mines 754 | -10/Mines | Discovered new exit (range 11) 757 | -10/Mines | Received a Mining Laser from a helpful Derelict 1253 | -10/Mines | Discovered new exit (range 11) 1509 | -10/Mines | Assisted by bots powering up and referring to "LRC-V3" 1544 | -10/Mines | Met a Derelict who couldn't figure out how to use a Trap Extractor 1595 | -10/Mines | Core integrity fell below 50% 1614 | -10/Mines | Destroyed YI-UF0 1619 | -10/Mines | Discovered new exit (range 8) 1634 | -10/Mines | Entered Exiles 1634 | -10/Exiles | Found Exiles lab abandoned 1635 | -10/Exiles | Identified exit to Mines 1957 | -10/Exiles | Entered Mines 2012 | -9/Mines | Learned location of Storage (-9) 2083 | -9/Mines | Discovered new exit (range 8) 2095 | -9/Mines | Entered Materials 2095 | -8/Materials | Evolved 4 slots: Utility x2, Weapon x2 2103 | -8/Materials | Lost 4 parts (1p2n1w) 2159 | -8/Materials | Garrison activated, responded to threat 2274 | -8/Materials | Core integrity fell below 50% 2295 | -8/Materials | Lost 5 parts (1p3n1w) 2298 | -8/Materials | Core integrity fell below 20% 2299 | -8/Materials | Self-destructed Last Messages --------------- 02247_ U-05 Engineer lays Concrete. 02248_ K-01 Serf collects debris. 02248_ Acquired Carbon-fiber Leg. 02250_ Acquired 10 matter. 02251_ K-01 Serf collects debris. 02252_ Lgt. Treads destroyed. 02252_ Kicked G-47 Trooper out of the way. 02255_ K-01 Serf collects debris. 02257_ Slammed into G-47 Trooper. 02258_ K-01 Serf collects debris. 02259_ Kicked G-47 Trooper out of the way. 02261_ K-01 Serf collects debris. 02262_ Slammed into G-47 Trooper. 02264_ Carbon-fiber Leg destroyed. 02265_ K-01 Serf collects debris. 02266_ Slammed into G-47 Trooper. 02268_ K-01 Serf collects debris. 02274_ K-01 Serf destroyed. 02277_ Slammed into G-47 Trooper. 02298_ K-01 Serf collects debris. Map ----- +----------------------------------------------------+ | | | | | | | | | | | | | | | | | | | | | | | | | | | | | | | ??????????????????###############????????????????? | | ??????????????????# #????????????????? | | ??????????????????# #????????????????? | | ??????????????????# #????????????????? | | ??????????????????# = #????????????????? | | ??????????????????# !%k #????????????????? | | ??????????????????# = #????????????????? | | ???????##################/#############+########?? | | ???????# %Y%%%% ? | | ???????# %%%* =* ? | | ???????# %@g%% = g ? | | ???????####+#####################u #########????? | | ????????? ??????????????????# #????????????? | | ???????# ! ????????????????# #????????????? | | ???????# #???????????????# +????????????? | | ???????# #???????????????# # ???????????? | | ???????# #???????????????# # ??????????? | | ???????# #???????????????# #? ?????????? | | ???????# #???????????????# #?? ????????? | | ???????# #???????????????? #?? ????????? | | ???????# #???????????????? #??? ???????? | | ???????##########???????????????? #????##??????? | | ????????????????????????????????? #????????????? | | ????????????????????????????????? #????????????? | | ????????????????????????????????? #????????????? | | ????????????????????????????????? ?????????????? | | ?????????????????????????????????????????????????? | | ?????????????????????????????????????????????????? | | ?????????????????????????????????????????????????? | | ?????????????????????????????????????????????????? | | ?????????????????????????????????????????????????? | | ?????????????????????????????????????????????????? | | ?????????????????????????????????????????????????? | | ?????????????????????????????????????????????????? | | ?????????????????????????????????????????????????? | +----------------------------------------------------+ Best States ------------- Heat Dissipation 31 Energy Generation 10 Energy Capacity 250 Matter Stores 300 Matter Capacity 300 Sight Range 16 Terrain Scan Density 10 Evasion (%) 50 Targeting Accuracy 5 Target Analysis 5 Recoil Reduction 2 Item Schematics ----------------- None Robot Schematics ------------------ None Fabricated ------------ Nothing Alien Tech Used ----------------- None Achievements -------------- None Challenges ------------ None Game ------ Seed DamperMiniDesublimator Manual? 0 Play Time 00:15:36 Cumulative 207.6 hours Start 2020.04.24 @ 00:30:43 End 2020.04.24 @ 00:46:23 Sessions 1 Manual Loads 0 Difficulty Rogue Special Mode None Game No. 160 Rogue 160 Adventurer 0 Explorer 0 Win Type - Total 10 Types 5/0/1/1/0/2/1 Lore% 75 Gallery% 79 Achievement% 72 Wizard Run 0 Options --------- ASCII 0 Keyboard 1 Movement Numpad Keybinds 0 Fullscreen 2 Font 12/Terminus Map View 83x54 Tactical HUD 1 Map Filters NONE Filters LOW_CONTRAST(13,24,33) Steam 1 RUN: 30d27c40-8613-4f31-a2c3-629bf53e0d15